bitfinex-derivatives/quotes_BTCF0:USTF0_20250402
["timestamp","ask_amount","ask_price","bid_price","bid_amount"]
[1743616703574,0.25768999,86651.0,86650.0,0.11713538]
[1743616703978,0.27344171,86651.0,86650.0,0.11713538]
[1743616704179,0.27344171,86651.0,86650.0,0.00173098]
[1743616708981,0.63424171,86651.0,86650.0,0.00173098]
[1743616709180,0.4014416,86651.0,86650.0,0.00233098]
[1743616709380,0.1154071,86648.0,86647.0,0.00046164]
[1743616709580,0.11664711,86648.0,86647.0,0.00046164]
[1743616709786,0.24207463,86648.0,86647.0,0.00046164]
[1743616709987,0.24207463,86648.0,86647.0,0.00106164]
[1743616710189,0.60287463,86648.0,86647.0,0.00106164]
[1743616710391,0.60287463,86648.0,86647.0,0.00046164]
[1743616711283,0.1154138,86643.0,86631.0,0.00046173]
[1743616711481,0.11661381,86643.0,86640.0,0.0752]
[1743616711784,0.24699912,86643.0,86640.0,0.0752]
[1743616713186,0.1154284,86632.0,86631.0,0.00046173]
[1743616713386,0.1154284,86632.0,86631.0,0.11589153]
[1743616713583,0.1167084,86632.0,86631.0,0.00106173]
[1743616713996,0.1167084,86632.0,86631.0,0.11649153]
[1743616714198,0.1167084,86632.0,86631.0,0.18709153]
[1743616714504,0.1926084,86632.0,86631.0,0.25969153]
[1743616716988,0.1926084,86632.0,86631.0,0.14426173]
[1743616717208,0.2638084,86632.0,86631.0,0.25969153]
[1743616717409,0.39210157,86632.0,86631.0,0.18909153]
[1743616717704,0.39210157,86632.0,86631.0,0.07366173]
[1743616718799,0.75290157,86632.0,86631.0,0.00106173]
[1743616719106,0.1154391,86624.0,86623.0,0.00017315]
[1743616719294,0.1167191,86624.0,86623.0,0.00081315]
[1743616719494,0.2466027,86624.0,86623.0,0.11625355]
[1743616719890,0.1167191,86624.0,86623.0,0.11625355]
[1743616720295,0.1167191,86624.0,86623.0,0.26545355]
[1743616720908,0.00128,86624.0,86623.0,0.26545355]
[1743616721207,0.1154391,86624.0,86623.0,0.26545085]
[1743616721710,0.1154342,86628.0,86627.0,0.1154338]
[1743616721903,0.11667421,86628.0,86627.0,0.4768738]
[1743616722206,0.11667421,86628.0,86627.0,0.6928738]
[1743616722409,0.1154342,86628.0,86627.0,0.6928738]
[1743616723707,0.1154312,86630.0,86629.0,0.1731473]
[1743616724009,0.0577125,86635.0,86634.0,0.1154258]
[1743616724197,0.0577125,86635.0,86634.0,0.1160258]
[1743616724402,0.05891251,86635.0,86634.0,0.1160258]
[1743616725005,0.05891251,86635.0,86634.0,0.4768258]
[1743616725201,0.05891251,86635.0,86634.0,0.1160258]
[1743616725707,0.00120001,86635.0,86634.0,0.4768258]
[1743616725908,0.1154195,86639.0,86638.0,0.0577102]
[1743616726205,0.1154195,86639.0,86638.0,0.0583102]
[1743616726397,0.11665951,86639.0,86638.0,0.0583102]
[1743616726598,0.11665951,86639.0,86638.0,0.1312102]
[1743616728196,0.11665951,86639.0,86638.0,0.0735]
[1743616728401,0.25905951,86639.0,86638.0,0.0735]
[1743616729303,0.25905951,86639.0,86638.0,0.0729]
[1743616729797,0.25905951,86639.0,86638.0,0.07414]
[1743616730203,0.25905951,86639.0,86638.0,0.00124]
[1743616730706,0.1154258,86634.0,86633.0,0.1154265]
[1743616730900,0.11662581,86634.0,86633.0,0.1154265]
[1743616733107,0.19312581,86634.0,86633.0,0.1154265]
[1743616734510,0.11662581,86634.0,86633.0,0.1154265]
[1743616734814,0.17315,86629.0,86628.0,0.1154326]
[1743616734999,0.17443,86629.0,86628.0,0.1161126]
[1743616735901,0.0589962,86629.0,86628.0,0.13169711]
[1743616736099,0.00128,86629.0,86628.0,0.13169711]
[1743616736400,0.0577132,86634.0,86628.0,0.13169711]
[1743616736602,0.00017315,86640.0,86638.0,0.1154204]
[1743616736797,0.057705,86646.0,86639.0,0.20485229]
[1743616737002,0.057705,86646.0,86645.0,0.4185046]
[1743616737003,0.2321082,86646.0,86645.0,0.4185046]
[1743616737204,0.2321082,86646.0,86645.0,0.43483779]
[1743616737808,0.2321082,86646.0,86645.0,0.43483722]
[1743616738706,0.2321082,86646.0,86645.0,0.44663262]
[1743616739410,0.2321082,86646.0,86645.0,0.08583262]
[1743616739710,0.2321082,86646.0,86645.0,0.0695]
[1743616740505,0.1154258,86634.0,86633.0,0.20740993]
[1743616740701,0.1154258,86634.0,86633.0,0.22416998]
[1743616740908,0.11662581,86634.0,86633.0,0.22416998]
[1743616741218,0.11662581,86634.0,86633.0,0.27814993]
[1743616741412,0.26812581,86634.0,86633.0,0.27814993]
[1743616741615,0.26812581,86634.0,86633.0,0.63894993]
[1743616742407,0.26812581,86634.0,86633.0,0.75437703]
[1743616742606,0.26812581,86634.0,86633.0,0.82397703]
[1743616742809,0.26812581,86634.0,86633.0,0.34774993]
[1743616744019,0.26812581,86634.0,86633.0,0.14034]
[1743616745118,0.26812581,86634.0,86633.0,0.2557671]
[1743616745306,0.26812581,86634.0,86633.0,0.14034]
[1743616745705,0.26812581,86634.0,86633.0,0.2557671]
[1743616745911,0.11662581,86634.0,86633.0,0.2557671]
[1743616746116,0.00120001,86634.0,86633.0,0.2557671]
[1743616746420,0.28599463,86642.0,86641.0,0.1154164]
[1743616746617,0.28719464,86642.0,86641.0,0.1154164]
[1743616746821,0.11661511,86642.0,86641.0,0.3387164]
[1743616747919,0.11661511,86642.0,86641.0,0.08776639]
[1743616748123,0.26251511,86642.0,86641.0,0.0723]
[1743616748324,0.26251511,86642.0,86641.0,0.1435]
[1743616749616,0.26251511,86642.0,86641.0,0.2589164]
[1743616750021,0.26251511,86642.0,86641.0,0.2595164]
[1743616751418,0.75073412,86642.0,86641.0,0.0006]
[1743616751623,0.1154244,86635.0,86634.0,0.0719]
[1743616751827,0.11662441,86635.0,86634.0,0.0725]
[1743616752022,0.33002441,86635.0,86634.0,0.0725]
[1743616753828,0.18642441,86635.0,86634.0,0.1879258]
[1743616754216,0.18642441,86635.0,86634.0,0.2600258]
[1743616757314,0.00120001,86635.0,86634.0,0.2600258]
[1743616757516,0.1731252,86643.0,86642.0,0.1154138]
[1743616757722,0.28722271,86644.0,86643.0,0.1154138]
[1743616757920,0.28842272,86644.0,86643.0,0.1160138]
[1743616758120,0.28722271,86644.0,86643.0,0.1160138]
[1743616758942,0.28722271,86644.0,86643.0,0.0006]
[1743616759125,0.28722271,86644.0,86643.0,0.1160138]
[1743616759432,0.43102271,86644.0,86643.0,0.1160138]
[1743616759622,0.26041371,86644.0,86643.0,0.1160138]
[1743616761830,0.11661371,86644.0,86643.0,0.1160138]
[1743616763943,0.19251371,86644.0,86643.0,0.1160138]
[1743616764227,0.19251371,86644.0,86643.0,0.0006]
[1743616764431,0.26721371,86644.0,86643.0,0.0006]
[1743616764634,0.1154244,86636.0,86635.0,0.1154237]
[1743616764833,0.11666441,86636.0,86635.0,0.13161105]
[1743616765635,0.11666441,86636.0,86635.0,0.13165596]
[1743616766430,0.00124001,86636.0,86635.0,0.13165596]
[1743616766635,0.0577075,86642.0,86641.0,0.1154164]
[1743616766935,0.05890751,86642.0,86641.0,0.4768164]
[1743616768243,0.23203211,86642.0,86641.0,0.4768164]
[1743616771040,0.11661571,86642.0,86641.0,0.5480164]
[1743616771830,0.11661571,86642.0,86641.0,0.6220164]
[1743616772030,0.00120001,86642.0,86641.0,0.6220164]
[1743616772230,0.0004,86656.0,86653.0,0.1154005]
[1743616772531,0.00137316,86654.0,86653.0,0.49237581]
[1743616772736,0.00137316,86654.0,86653.0,0.63077581]
[1743616773139,0.00137316,86654.0,86653.0,0.64596709]
[1743616773343,0.00137316,86654.0,86653.0,0.64626547]
[1743616773544,0.00017315,86654.0,86653.0,0.64626547]
[1743616774047,0.00137316,86654.0,86653.0,0.64626547]
[1743616774446,0.11677226,86654.0,86653.0,0.64626547]
[1743616774847,0.00137316,86654.0,86653.0,0.64626547]
[1743616775348,0.00137316,86654.0,86653.0,0.65626547]
[1743616775549,0.00017315,86654.0,86653.0,0.65626547]
[1743616775851,0.00137316,86654.0,86653.0,0.65626547]
[1743616776046,0.00017315,86654.0,86653.0,0.65626547]
[1743616777046,0.11557225,86654.0,86653.0,0.71359178]
[1743616777251,0.11557225,86654.0,86653.0,0.71944551]
[1743616777451,0.11677226,86654.0,86653.0,0.70359178]
[1743616777851,0.00137316,86654.0,86653.0,0.70359178]
[1743616778644,0.00137316,86654.0,86653.0,0.6884005]
[1743616779351,0.00017315,86654.0,86653.0,0.6884005]
[1743616779852,0.00137316,86654.0,86653.0,0.6884005]
[1743616780956,0.00017315,86654.0,86653.0,0.6884005]
[1743616781857,0.00137316,86654.0,86653.0,0.6884005]
[1743616782154,0.00017315,86654.0,86653.0,0.6884005]
[1743616787059,0.00141316,86654.0,86653.0,0.6884005]
[1743616788257,0.11557225,86654.0,86653.0,0.5500005]
[1743616788460,0.19215225,86654.0,86653.0,0.5500005]
[1743616788646,0.26155225,86654.0,86653.0,0.5500005]
[1743616789644,0.26155225,86654.0,86653.0,0.0006]
[1743616789849,0.1154044,86650.0,86649.0,0.0694]
[1743616790058,0.11660441,86650.0,86649.0,0.07004]
[1743616790244,0.33680441,86650.0,86649.0,0.07004]
[1743616790448,0.33680441,86650.0,86649.0,0.1854405]
[1743616800262,0.33680441,86650.0,86649.0,0.00064]
[1743616800462,0.1154098,86646.0,86645.0,0.00017315]
[1743616800671,0.2308474,86639.0,86638.0,0.1154153]
[1743616800859,0.2322874,86639.0,86638.0,0.1874153]
[1743616801060,0.5930874,86639.0,86638.0,0.0006]
[1743616801257,0.5930874,86639.0,86610.0,0.93019084]
[1743616801258,0.1154351,86627.0,86616.0,0.0577242]
[1743616801457,0.1170351,86627.0,86623.0,0.1154398]
[1743616801653,0.13001595,86627.0,86626.0,0.40682121]
[1743616801860,0.24545105,86627.0,86626.0,0.76762121]
[1743616802162,0.1170351,86627.0,86626.0,0.76762121]
[1743616802468,0.0016,86627.0,86626.0,0.83902121]
[1743616802764,0.2667324,86629.0,86628.0,0.1154338]
[1743616802963,0.0016,86629.0,86628.0,0.1154338]
[1743616803165,0.00017315,86635.0,86628.0,0.1154338]
[1743616803166,0.00017315,86635.0,86634.0,0.1154258]
[1743616803369,0.0716,86655.0,86652.0,0.1730993]
[1743616803569,0.1886005,86655.0,86654.0,0.4761991]
[1743616803867,0.2621805,86655.0,86654.0,0.4761991]
[1743616804260,0.2621805,86655.0,86654.0,0.5478991]
[1743616805357,0.1154071,86648.0,86647.0,0.3608]
[1743616805562,0.1154084,86647.0,86646.0,0.11558225]
[1743616805859,0.3328084,86647.0,86646.0,0.11558225]
[1743616806060,0.075,86647.0,86646.0,0.11558225]
[1743616806262,0.2311999,86656.0,86655.0,0.1153978]
[1743616806462,0.0596983,86656.0,86655.0,0.1153978]
[1743616806660,0.002,86656.0,86655.0,0.1153978]
[1743616806859,0.00863068,86692.0,86655.0,0.41564406]
[1743616807069,0.33953164,86700.0,86676.0,0.1153698]
[1743616807258,0.0576776,86687.0,86681.0,0.0576813]
[1743616807462,0.0576828,86680.0,86677.0,0.1153684]
[1743616807666,0.1153672,86678.0,86677.0,0.1894685]
[1743616807867,0.1153672,86678.0,86677.0,0.0741]
[1743616808263,0.2598672,86678.0,86677.0,0.0741]
[1743616808466,0.26106721,86678.0,86677.0,0.0741]
[1743616808961,0.00120001,86678.0,86677.0,0.1894685]
[1743616809464,0.00120001,86678.0,86677.0,0.20459442]
[1743616810067,0.11656721,86678.0,86677.0,0.20579442]
[1743616813872,0.00120001,86678.0,86677.0,0.20579442]
[1743616814863,0.1153649,86680.0,86679.0,0.1153658]
[1743616815065,0.11648491,86680.0,86679.0,0.4767658]
[1743616815465,0.11648491,86680.0,86679.0,0.5505658]
[1743616815671,0.00112001,86680.0,86679.0,0.56569172]
[1743616815869,0.1877583,86685.0,86684.0,0.1153592]
[1743616816080,0.18887831,86685.0,86684.0,0.1159592]
[1743616816374,0.07352001,86685.0,86684.0,0.1159592]
[1743616816574,0.07352001,86685.0,86684.0,0.2618592]
[1743616816575,0.18887791,86685.0,86684.0,0.2618592]
[1743616816767,0.07352001,86685.0,86684.0,0.27698512]
[1743616817171,0.07352001,86685.0,86684.0,0.2618592]
[1743616817674,0.057675,86691.0,86684.0,0.2618592]
[1743616817675,0.1153437,86696.0,86685.0,0.1153579]
[1743616817865,0.1153437,86696.0,86685.0,0.1159579]
[1743616817866,0.1153459,86694.0,86685.0,0.1159579]
[1743616818067,0.1856477,86693.0,86685.0,0.2639579]
[1743616818472,0.1153487,86692.0,86685.0,0.2639579]
[1743616818775,0.1153501,86691.0,86685.0,0.27912027]
[1743616818976,0.00129306,86686.0,86685.0,0.27912027]
[1743616822883,0.00017305,86686.0,86685.0,0.27912027]
[1743616823180,0.0004,86688.0,86687.0,0.1153552]
[1743616823386,0.1730157,86698.0,86697.0,0.1153406]
[1743616823585,0.24453571,86698.0,86697.0,0.1159406]
[1743616823884,0.24453571,86698.0,86697.0,0.2609406]
[1743616824086,0.07152001,86698.0,86697.0,0.2609406]
[1743616825984,0.14562001,86698.0,86697.0,0.2609406]
[1743616826481,0.00112001,86698.0,86697.0,0.2609406]
[1743616826689,0.01172199,86702.0,86697.0,0.2609406]
[1743616826690,0.01172199,86702.0,86701.0,0.1153366]
[1743616826878,0.00112001,86702.0,86701.0,0.1159366]
[1743616827077,0.00017305,86706.0,86701.0,0.1479]
[1743616827282,0.00093305,86706.0,86705.0,0.4761312]
[1743616827477,0.00017305,86706.0,86705.0,0.4767312]
[1743616827677,0.00017305,86706.0,86705.0,0.49213022]
[1743616827884,0.00017305,86706.0,86705.0,0.63653022]
[1743616829289,0.11550295,86706.0,86705.0,0.37679902]
[1743616829493,0.11626295,86706.0,86705.0,0.01599902]
[1743616829783,0.24861214,86706.0,86705.0,0.01599902]
[1743616830097,0.24861214,86706.0,86705.0,0.0006]
[1743616830291,0.0576666,86704.0,86700.0,0.1153366]
[1743616830488,0.0576663,86705.0,86696.0,0.3608]
[1743616830489,0.0576689,86701.0,86696.0,0.3608]
[1743616830691,0.1153419,86697.0,86696.0,0.3608]
[1743616831382,0.1153485,86692.0,86691.0,0.1153495]
[1743616831587,0.1153499,86691.0,86690.0,0.0752]
[1743616831789,0.2557499,86691.0,86690.0,0.20605973]
[1743616832282,0.2557499,86691.0,86690.0,0.09070853]
[1743616832792,0.2557499,86691.0,86690.0,0.0752]
[1743616833385,0.1153512,86690.0,86689.0,0.00017305]
[1743616833685,0.1153512,86690.0,86689.0,0.11552555]
[1743616833881,0.2568512,86690.0,86689.0,0.11552555]
[1743616834389,0.2568512,86690.0,86689.0,0.13112857]
[1743616834589,0.2568512,86690.0,86689.0,0.01577607]
[1743616835094,0.6176512,86690.0,86689.0,0.01577607]
[1743616835283,0.2568512,86690.0,86689.0,0.01577607]
[1743616835791,0.2576112,86690.0,86689.0,0.01637607]
[1743616837607,0.37824818,86690.0,86689.0,0.01620302]
[1743616837892,0.1153831,86666.0,86665.0,0.1843827]
[1743616838200,0.1153831,86666.0,86665.0,0.26841629]
[1743616838390,0.1153831,86666.0,86665.0,0.2519227]
[1743616838694,0.11634311,86666.0,86665.0,0.2519227]
[1743616838889,0.25654311,86666.0,86665.0,0.2519227]
[1743616839091,0.25654311,86666.0,86665.0,0.1850227]
[1743616839892,0.25654311,86666.0,86665.0,0.00064]
[1743616840097,0.38033834,86666.0,86665.0,0.00064]
[1743616841796,0.1153858,86664.0,86663.0,0.00046156]
[1743616841989,0.1153938,86658.0,86657.0,0.00017305]
[1743616842191,0.11635381,86658.0,86657.0,0.00017305]
[1743616842390,0.24164553,86658.0,86657.0,0.00017305]
[1743616842587,0.37674553,86658.0,86657.0,0.00017305]
[1743616843485,0.1154071,86648.0,86647.0,0.2767072]
[1743616843685,0.11636711,86648.0,86647.0,0.2773072]
[1743616843890,0.25017179,86648.0,86647.0,0.2773072]
[1743616844194,0.25017179,86648.0,86647.0,0.00106164]
[1743616844396,0.38527179,86648.0,86647.0,0.00046164]
[1743616844591,0.1154191,86639.0,86638.0,0.0678]
[1743616844794,0.11645911,86639.0,86638.0,0.06848]
[1743616844989,0.24386938,86639.0,86638.0,0.06848]
[1743616845498,0.38546938,86639.0,86638.0,0.06848]
[1743616846194,0.07314001,86639.0,86638.0,0.1839004]
[1743616846500,0.11645911,86639.0,86638.0,0.1839004]
[1743616846900,0.11645911,86639.0,86638.0,0.2505004]
[1743616848789,0.00104001,86639.0,86638.0,0.2505004]
[1743616849000,0.1731278,86642.0,86641.0,0.0577067]
[1743616849202,0.17408781,86642.0,86641.0,0.0583067]
[1743616849391,0.17408781,86642.0,86641.0,0.1974067]
[1743616849591,0.17408781,86642.0,86641.0,0.1397]
[1743616849993,0.2977811,86642.0,86641.0,0.0006]
[1743616850299,0.2977811,86642.0,86630.0,0.36097305]
[1743616850300,0.1154284,86632.0,86630.0,0.00017305]
[1743616850500,0.1164284,86632.0,86631.0,0.00106173]
[1743616850699,0.24012169,86632.0,86631.0,0.06996173]
[1743616851105,0.38182169,86632.0,86631.0,0.06996173]
[1743616851904,0.38182169,86632.0,86631.0,0.08556195]
[1743616852109,0.38182169,86632.0,86631.0,0.06996173]
[1743616852298,0.38182169,86632.0,86631.0,0.08556188]
[1743616852615,0.38182169,86632.0,86631.0,0.06996173]
[1743616852804,0.39322126,86632.0,86631.0,0.06996173]
[1743616853704,0.39322126,86632.0,86631.0,0.13876173]
[1743616854103,0.39322126,86632.0,86631.0,0.13816173]
[1743616854308,0.39322126,86632.0,86631.0,0.07032173]
[1743616854801,0.39322126,86632.0,86631.0,0.06936173]
[1743616855398,0.1154298,86631.0,86630.0,0.00017305]
[1743616855700,0.1154351,86627.0,86626.0,0.07]
[1743616855904,0.1154351,86627.0,86620.0,0.07]
[1743616855905,0.1154431,86621.0,86620.0,0.07]
[1743616856104,0.11656311,86621.0,86620.0,0.07064]
[1743616856608,0.11656311,86621.0,86620.0,0.07]
[1743616856903,0.25746311,86621.0,86620.0,0.07068]
[1743616857104,0.00112001,86621.0,86620.0,0.5468444]
[1743616857410,0.1154431,86621.0,86620.0,0.7870103]
[1743616857611,0.1409,86631.0,86623.0,0.1731552]
[1743616857612,0.0577195,86624.0,86623.0,0.1731552]
[1743616857907,0.05900966,86629.0,86628.0,0.1154338]
[1743616858109,0.00017315,86629.0,86628.0,0.1160338]
[1743616858317,0.11560555,86629.0,86628.0,0.2549338]
[1743616858615,0.11672556,86629.0,86628.0,0.2549338]
[1743616859813,0.11672556,86629.0,86628.0,0.27068088]
[1743616861910,0.0576996,86654.0,86645.0,0.1731132]
[1743616862109,0.3608,86669.0,86655.0,0.1153978]
[1743616862311,0.0576974,86658.0,86655.0,0.1153978]
[1743616862616,0.1157965,86656.0,86655.0,0.26974488]
[1743616863012,0.1157965,86656.0,86655.0,0.15434708]
[1743616863412,0.1157965,86656.0,86655.0,0.17961536]
[1743616864807,0.24669719,86656.0,86655.0,0.04101536]
[1743616865011,0.45579719,86656.0,86655.0,0.04101536]
[1743616865210,0.1154058,86649.0,86648.0,0.0681]
[1743616865612,0.24630649,86649.0,86648.0,0.0840338]
[1743616865811,0.38850649,86649.0,86648.0,0.0840338]
[1743616866811,0.38850649,86649.0,86648.0,0.0159338]
[1743616867415,0.38930649,86649.0,86648.0,0.0859338]
[1743616868115,0.38930649,86649.0,86648.0,0.04162213]
[1743616868310,0.1154378,86625.0,86624.0,0.4762384]
[1743616868513,0.1154378,86625.0,86624.0,0.3614]
[1743616868707,0.24635412,86625.0,86624.0,0.3614]
[1743616874809,0.24635412,86625.0,86624.0,0.0006]
[1743616875014,0.1154431,86621.0,86620.0,0.0663]
[1743616875225,0.1162831,86621.0,86620.0,0.0663]
[1743616875437,0.24550678,86621.0,86620.0,0.0663]
[1743616879317,0.13006368,86621.0,86620.0,0.1817444]
[1743616879621,0.1154417,86623.0,86622.0,0.115437]
[1743616879814,0.11604171,86623.0,86622.0,0.476837]
[1743616880018,0.1154417,86623.0,86622.0,0.476837]
[1743616880224,0.1154417,86623.0,86622.0,0.548637]
[1743616880423,0.1731625,86623.0,86622.0,0.548637]
[1743616880726,0.1738025,86623.0,86622.0,0.44866488]
[1743616880928,0.1738025,86623.0,86622.0,0.56410668]
[1743616881123,0.1738025,86623.0,86622.0,0.44866488]
[1743616882024,0.29845136,86623.0,86622.0,0.08786488]
[1743616882225,0.29845136,86623.0,86622.0,0.08726488]
[1743616883031,0.29845136,86623.0,86622.0,0.08786488]
[1743616883228,0.0583608,86623.0,86622.0,0.56350668]
[1743616883427,0.0577208,86623.0,86622.0,0.44870488]
[1743616883726,0.00060001,86623.0,86622.0,0.56414668]
[1743616883927,0.1154357,86628.0,86627.0,0.1731509]
[1743616884120,0.1154357,86628.0,86627.0,0.0583574]
[1743616884317,0.1161157,86628.0,86627.0,0.07382228]
[1743616884727,0.1161157,86628.0,86627.0,0.10213704]
[1743616885037,0.1161157,86628.0,86627.0,0.11112026]
[1743616886624,0.1161157,86628.0,86627.0,0.08610488]
[1743616887324,0.00068,86628.0,86627.0,0.08610488]
[1743616887637,0.1161138,86628.0,86627.0,0.20153998]
[1743616887825,0.1154338,86628.0,86627.0,0.21754852]
[1743616888019,0.1154338,86628.0,86627.0,0.20153998]
[1743616888426,0.11603381,86628.0,86627.0,0.08610488]
[1743616889838,0.00060001,86628.0,86627.0,0.22655912]
[1743616890032,0.1154164,86642.0,86641.0,0.1154127]
[1743616890223,0.0577069,86643.0,86641.0,0.5022]
[1743616890427,0.1154123,86646.0,86645.0,0.1731138]
[1743616890731,0.1162035,86653.0,86652.0,0.1154018]
[1743616890931,0.1739439,86653.0,86652.0,0.51752582]
[1743616891132,0.29705592,86653.0,86652.0,0.46912402]
[1743616891722,0.29705592,86653.0,86652.0,0.58452582]
[1743616892134,0.29705592,86653.0,86652.0,0.46912402]
[1743616893041,0.29705592,86653.0,86652.0,0.54032402]
[1743616893432,0.12395202,86653.0,86652.0,0.65572582]
[1743616893635,0.1157965,86656.0,86655.0,0.1153978]
[1743616893831,0.1157965,86656.0,86655.0,0.1161978]
[1743616894141,0.0004,86688.0,86671.0,0.1153765]
[1743616894327,0.0004,86688.0,86671.0,0.4770165]
[1743616894328,0.0709,86687.0,86671.0,0.4770165]
[1743616894528,0.1153707,86676.0,86671.0,0.4770165]
[1743616894730,0.0576837,86678.0,86671.0,0.6186165]
[1743616894925,0.0576837,86678.0,86671.0,0.65910052]
[1743616895130,0.1153706,86676.0,86671.0,0.65910052]
[1743616895331,0.1153712,86675.0,86671.0,0.65910052]
[1743616896232,0.00017315,86680.0,86671.0,0.65910052]
[1743616896632,0.1157752,86672.0,86671.0,0.65910052]
[1743616898340,0.1153679,86678.0,86677.0,0.0576836]
[1743616898542,0.1161679,86678.0,86677.0,0.0584836]
[1743616898743,0.1161679,86678.0,86677.0,0.07394848]
[1743616899040,0.0576708,86698.0,86677.0,0.07394848]
[1743616899041,0.1153594,86686.0,86685.0,0.1153565]
[1743616899241,0.1153594,86686.0,86685.0,0.1163965]
[1743616899242,0.11639941,86686.0,86685.0,0.1163965]
[1743616899439,0.00104001,86686.0,86685.0,0.1163965]
[1743616899742,0.1157327,86704.0,86703.0,0.1153339]
[1743616899941,0.1170927,86704.0,86703.0,0.1166939]
[1743616900337,0.1170927,86704.0,86703.0,0.2508939]
[1743616901133,0.00176,86704.0,86703.0,0.13556]
[1743616901339,0.0004,86704.0,86703.0,0.2508939]
[1743616903444,0.0004,86704.0,86703.0,0.25957986]
[1743616903641,0.00017305,86712.0,86711.0,0.1153233]
[1743616903849,0.00017305,86712.0,86711.0,0.4774833]
[1743616904837,0.11685495,86712.0,86711.0,0.4774833]
[1743616905836,0.00153305,86712.0,86711.0,0.4774833]
[1743616906037,0.00017305,86712.0,86711.0,0.4774833]
[1743616906238,0.11549495,86712.0,86711.0,0.4774833]
[1743616906439,0.00017305,86712.0,86711.0,0.4774833]
[1743616907339,0.0004,86720.0,86719.0,0.1153126]
[1743616907538,0.0004,86720.0,86719.0,0.4775126]
[1743616908148,0.0004,86720.0,86719.0,0.62903755]
[1743616908542,0.1157113,86720.0,86719.0,0.62903755]
[1743616909143,0.1157113,86720.0,86719.0,0.01712495]
[1743616909447,0.1153179,86715.0,86714.0,0.0713]
[1743616909637,0.1153179,86715.0,86714.0,0.07266]
[1743616910045,0.1166779,86715.0,86714.0,0.07266]
[1743616910242,0.2584779,86715.0,86714.0,0.07266]
[1743616910446,0.2584779,86715.0,86714.0,0.1879793]
[1743616910745,0.2584779,86715.0,86714.0,0.07266]
[1743616910943,0.2584779,86715.0,86714.0,0.00136]
[1743616911445,0.00136,86715.0,86714.0,0.4761193]
[1743616911747,0.0004,86720.0,86719.0,0.1153126]
[1743616911939,0.0004,86720.0,86719.0,0.1170726]
[1743616912243,0.00017154,86728.0,86727.0,0.115302]
[1743616912441,0.11547224,86728.0,86727.0,0.117142]
[1743616912748,0.00017154,86728.0,86727.0,0.117142]
[1743616912947,0.11547224,86728.0,86727.0,0.255442]
[1743616913244,0.00017154,86728.0,86727.0,0.255442]
[1743616914238,0.00017154,86728.0,86727.0,0.27151322]
[1743616917242,0.00017154,86728.0,86727.0,0.29729535]
[1743616919144,0.00017154,86728.0,86727.0,0.3139375]
[1743616920250,0.0703,86735.0,86727.0,0.3139375]
[1743616920251,0.0703,86735.0,86734.0,0.1152927]
[1743616920558,0.0703,86735.0,86734.0,0.4778527]
[1743616920751,0.0703,86735.0,86734.0,0.6175527]
[1743616921151,0.0703,86735.0,86734.0,0.67604435]
[1743616921855,0.0004,86736.0,86735.0,0.1152914]
[1743616922153,0.0004,86736.0,86735.0,0.16051131]
[1743616922455,0.0666,86751.0,86735.0,0.25429958]
[1743616922671,0.0702,86750.0,86749.0,0.1152727]
[1743616922842,0.0702,86750.0,86749.0,0.26754805]
[1743616923044,0.0702,86750.0,86749.0,0.3094014]
[1743616923355,0.1393,86750.0,86749.0,0.33611065]
[1743616923950,0.0666,86760.0,86751.0,0.1152701]
[1743616924155,0.0666,86760.0,86751.0,0.1604547]
[1743616924156,0.1267313,86757.0,86751.0,0.1604547]
[1743616924457,0.23849239,86752.0,86751.0,0.08703795]
[1743616924648,0.23849239,86752.0,86751.0,0.08488236]
[1743616924850,0.23849239,86752.0,86751.0,0.0603287]
[1743616925251,0.37559239,86752.0,86751.0,0.0585687]
[1743616925649,0.37559239,86752.0,86751.0,0.04185335]
[1743616926853,0.37559239,86752.0,86751.0,0.05807445]
[1743616927254,0.0004,86752.0,86751.0,0.17514455]
[1743616927454,0.0004,86752.0,86751.0,0.20106991]
[1743616927666,0.1156688,86752.0,86751.0,0.20106991]
[1743616927862,0.1156688,86752.0,86751.0,0.33577633]
[1743616928661,0.2523688,86752.0,86751.0,0.33577633]
[1743616929655,0.25174521,86752.0,86751.0,0.33549876]
[1743616930057,0.25174521,86752.0,86751.0,0.30971663]
[1743616930246,0.1152688,86752.0,86751.0,0.30971533]
[1743616931457,0.1152688,86752.0,86751.0,0.26780002]
[1743616931760,0.1820688,86752.0,86751.0,0.12572987]
[1743616932863,0.1820688,86752.0,86751.0,0.10000762]
[1743616933055,0.2500688,86752.0,86751.0,0.10000762]
[1743616933355,0.1152688,86752.0,86751.0,0.08393122]
[1743616933563,0.2503688,86752.0,86751.0,0.09962924]
[1743616934461,0.2503688,86752.0,86751.0,0.03352924]
[1743616934671,0.38461222,86752.0,86751.0,0.01783122]
[1743616935657,0.38461222,86752.0,86751.0,0.00176]
[1743616935859,0.1152754,86747.0,86746.0,0.20649105]
[1743616936050,0.4760754,86747.0,86746.0,0.20825105]
[1743616936251,0.73721518,86747.0,86746.0,0.20825105]
[1743616936455,0.74721518,86747.0,86746.0,0.20825105]
[1743616936761,0.74721518,86747.0,86746.0,0.00176]
[1743616936966,0.74721518,86747.0,86746.0,0.01506554]
[1743616937859,0.38641518,86747.0,86746.0,0.01506554]
[1743616938267,0.2503754,86747.0,86746.0,0.03254651]
[1743616938466,0.2503754,86747.0,86746.0,0.14782321]
[1743616938658,0.2503754,86747.0,86746.0,0.50862321]
[1743616938963,0.2503754,86747.0,86746.0,0.64112321]
[1743616939466,0.2503754,86747.0,86746.0,0.28032321]
[1743616939761,0.2503754,86747.0,86746.0,0.14998097]
[1743616939963,0.2503754,86747.0,86746.0,0.067]
[1743616940171,0.115282,86742.0,86741.0,0.00017294]
[1743616940462,0.115282,86742.0,86741.0,0.00193294]
[1743616940666,0.250982,86742.0,86741.0,0.00369294]
[1743616940864,0.250982,86742.0,86741.0,0.00193294]
[1743616942160,0.250982,86742.0,86741.0,0.06953294]
[1743616944370,0.250982,86742.0,86741.0,0.00193294]
[1743616945773,0.250982,86742.0,86741.0,0.01701002]
[1743616946175,0.250982,86742.0,86741.0,0.03266204]
[1743616946378,0.650982,86742.0,86738.0,0.2753214]
[1743616946575,0.1153179,86715.0,86714.0,0.45791022]
[1743616946765,0.1153246,86710.0,86709.0,0.21006844]
[1743616946965,0.4961246,86710.0,86709.0,0.21006844]
[1743616947272,0.3068326,86704.0,86703.0,0.39134484]
[1743616947575,0.1153525,86689.0,86688.0,0.67257764]
[1743616947877,0.9380325,86689.0,86688.0,0.09317479]
[1743616948072,1.07085272,86689.0,86688.0,0.09317479]
[1743616948573,1.18565272,86689.0,86688.0,0.09317479]
[1743616949071,0.82485272,86689.0,86688.0,0.09317479]
[1743616950077,0.82485272,86689.0,86688.0,0.09409479]
[1743616950572,1.19565272,86689.0,86688.0,0.09409479]
[1743616951074,1.19657272,86689.0,86688.0,0.09409479]
[1743616951468,0.83577272,86689.0,86688.0,0.09409479]
[1743616951981,0.80078713,86689.0,86688.0,0.00092]